[Event "Early-Titled-Tuesday-Blitz-January-23-2024"]
[Site "Chess.com"]
[Date "2024.01.23"]
[Round "2"]
[White "DvaHrasta"]
[Black "Meri-Arabidze"]
[Result "0-1"]
[WhiteElo "2413"]
[BlackElo "2715"]
[TimeControl "180+1"]
[EndTime "8:16:55 PST"]
[Termination "Meri-Arabidze won on time"]

1. c4 {[%clk 0:03:00.9]} 1... e5 {[%clk 0:02:59.3]} 2. g3 {[%clk 0:03:01]} 2...
Nc6 {[%clk 0:02:59.7]} 3. Bg2 {[%clk 0:03:01.2]} 3... g6 {[%clk 0:03:00.3]} 4.
Nc3 {[%clk 0:03:00]} 4... Bg7 {[%clk 0:03:00.8]} 5. Nf3 {[%clk 0:03:00.3]} 5...
d6 {[%clk 0:03:00.8]} 6. O-O {[%clk 0:03:00.2]} 6... Nf6 {[%clk 0:03:01.2]} 7.
d3 {[%clk 0:02:58.7]} 7... O-O {[%clk 0:03:01.7]} 8. Rb1 {[%clk 0:02:59.1]} 8...
h6 {[%clk 0:03:01.8]} 9. b4 {[%clk 0:02:58.8]} 9... a6 {[%clk 0:03:02.5]} 10. a4
{[%clk 0:02:58.5]} 10... Be6 {[%clk 0:03:03.1]} 11. b5 {[%clk 0:02:58.5]} 11...
axb5 {[%clk 0:03:04]} 12. axb5 {[%clk 0:02:58.8]} 12... Ne7 {[%clk 0:03:04.7]}
13. Ne1 {[%clk 0:02:55.3]} 13... c6 {[%clk 0:03:04.9]} 14. e4 {[%clk 0:02:52.8]}
14... Nd7 {[%clk 0:03:02.3]} 15. Nc2 {[%clk 0:02:50.3]} 15... Nc5 {[%clk
0:03:02.2]} 16. Nb4 {[%clk 0:02:46.1]} 16... Kh7 {[%clk 0:03:00.2]} 17. Be3
{[%clk 0:02:45.8]} 17... Qd7 {[%clk 0:02:57.4]} 18. Ra1 {[%clk 0:02:39.5]} 18...
Rxa1 {[%clk 0:02:48.8]} 19. Qxa1 {[%clk 0:02:37.5]} 19... f5 {[%clk 0:02:49.7]}
20. Qa7 {[%clk 0:02:19.2]} 20... Nb3 {[%clk 0:02:19.6]} 21. bxc6 {[%clk
0:02:07.7]} 21... bxc6 {[%clk 0:02:19.9]} 22. Qxd7 {[%clk 0:01:59.4]} 22... Bxd7
{[%clk 0:02:20.8]} 23. Rb1 {[%clk 0:01:55.4]} 23... Nd4 {[%clk 0:02:20.6]} 24.
Na6 {[%clk 0:01:32.7]} 24... Bc8 {[%clk 0:02:09.2]} 25. Nc7 {[%clk 0:01:27.5]}
25... f4 {[%clk 0:02:05]} 26. Bxd4 {[%clk 0:01:21.6]} 26... exd4 {[%clk
0:02:05.9]} 27. Na4 {[%clk 0:01:20]} 27... f3 {[%clk 0:02:03.6]} 28. Bf1 {[%clk
0:01:19]} 28... g5 {[%clk 0:01:59]} 29. h3 {[%clk 0:01:05.4]} 29... Ng6 {[%clk
0:01:52.7]} 30. Rb8 {[%clk 0:01:00]} 30... Ne5 {[%clk 0:01:31.6]} 31. c5 {[%clk
0:00:52.8]} 31... dxc5 {[%clk 0:01:23.6]} 32. Nxc5 {[%clk 0:00:52.6]} 32... Bd7
{[%clk 0:01:14.2]} 33. Nxd7 {[%clk 0:00:44.7]} 33... Nxd7 {[%clk 0:01:13]} 34.
Rxf8 {[%clk 0:00:38.1]} 34... Bxf8 {[%clk 0:01:13.9]} 35. Ne6 {[%clk 0:00:36.3]}
35... Bg7 {[%clk 0:01:07.8]} 36. Nxg7 {[%clk 0:00:22.3]} 36... Kxg7 {[%clk
0:01:08.7]} 37. g4 {[%clk 0:00:22.6]} 37... Kf6 {[%clk 0:01:04.9]} 38. Kh2
{[%clk 0:00:22.9]} 38... Ne5 {[%clk 0:01:05.2]} 39. Kg3 {[%clk 0:00:22.4]} 39...
Ke6 {[%clk 0:01:05.6]} 40. h4 {[%clk 0:00:22.6]} 40... Kd6 {[%clk 0:01:05.9]}
41. hxg5 {[%clk 0:00:09.3]} 41... hxg5 {[%clk 0:01:06.8]} 0-1

[Event "Early-Titled-Tuesday-Blitz-January-23-2024"]
[Site "Chess.com"]
[Date "2024.01.23"]
[Round "2"]
[White "lularobs"]
[Black "Titus369"]
[Result "0-1"]
[WhiteElo "1575"]
[BlackElo "2658"]
[TimeControl "180+1"]
[EndTime "8:16:56 PST"]
[Termination "Titus369 won on time"]

1. e4 {[%clk 0:03:00.9]} 1... c5 {[%clk 0:02:57.3]} 2. d4 {[%clk 0:03:00.6]}
2... cxd4 {[%clk 0:02:56.9]} 3. c3 {[%clk 0:03:01.5]} 3... g6 {[%clk 0:02:56.6]}
4. cxd4 {[%clk 0:03:00]} 4... d5 {[%clk 0:02:56]} 5. e5 {[%clk 0:02:43.2]} 5...
Bg7 {[%clk 0:02:51.8]} 6. Nc3 {[%clk 0:02:32.6]} 6... Nc6 {[%clk 0:02:46.6]} 7.
f4 {[%clk 0:02:27.3]} 7... Nh6 {[%clk 0:02:42.8]} 8. Be3 {[%clk 0:02:05]} 8...
f6 {[%clk 0:02:36.4]} 9. Nf3 {[%clk 0:02:02.4]} 9... O-O {[%clk 0:02:21.2]} 10.
Qb3 {[%clk 0:01:41.9]} 10... e6 {[%clk 0:02:04.1]} 11. Be2 {[%clk 0:01:24]}
11... fxe5 {[%clk 0:01:48.5]} 12. fxe5 {[%clk 0:01:20.7]} 12... Nf5 {[%clk
0:01:25.4]} 13. Bf2 {[%clk 0:01:09.8]} 13... Bh6 {[%clk 0:01:20.9]} 14. O-O
{[%clk 0:00:58.7]} 14... Be3 {[%clk 0:01:12.8]} 15. Bxe3 {[%clk 0:00:26.6]}
15... Nxe3 {[%clk 0:01:13.7]} 16. Nb5 {[%clk 0:00:27.5]} 16... Nxf1 {[%clk
0:01:04.4]} 17. Rxf1 {[%clk 0:00:23.4]} 17... Qb6 {[%clk 0:00:54.4]} 18. Rd1
{[%clk 0:00:11.2]} 18... a6 {[%clk 0:00:52]} 19. Nd6 {[%clk 0:00:11.2]} 19...
Qxb3 {[%clk 0:00:51.4]} 20. axb3 {[%clk 0:00:12.1]} 20... b5 {[%clk 0:00:47.4]}
21. Ng5 {[%clk 0:00:07]} 21... Bd7 {[%clk 0:00:45]} 22. b4 {[%clk 0:00:05.1]}
22... h6 {[%clk 0:00:43]} 23. Nf3 {[%clk 0:00:04.2]} 23... Nxb4 {[%clk
0:00:41.7]} 24. h3 {[%clk 0:00:01]} 24... Ra7 {[%clk 0:00:34.6]} 25. Kh2 {[%clk
0:00:01.9]} 25... Rc7 {[%clk 0:00:34.3]} 26. Rf1 {[%clk 0:00:01.3]} 26... Rc2
{[%clk 0:00:33.8]} 27. Bd1 {[%clk 0:00:01]} 27... Rxb2 {[%clk 0:00:32.5]} 28.
Nh4 {[%clk 0:00:01.2]} 28... Rxf1 {[%clk 0:00:31.7]} 0-1

[Event "Early-Titled-Tuesday-Blitz-January-23-2024"]
[Site "Chess.com"]
[Date "2024.01.23"]
[Round "2"]
[White "Zhigalko_Sergei"]
[Black "TheCount"]
[Result "1-0"]
[WhiteElo "2973"]
[BlackElo "2616"]
[TimeControl "180+1"]
[EndTime "8:16:59 PST"]
[Termination "Zhigalko_Sergei won by resignation"]

1. e4 {[%clk 0:03:00.9]} 1... c5 {[%clk 0:01:38.3]} 2. Nf3 {[%clk 0:02:59.5]}
2... Nc6 {[%clk 0:01:38.7]} 3. c3 {[%clk 0:02:58.2]} 3... Nf6 {[%clk 0:01:37.7]}
4. e5 {[%clk 0:02:58.5]} 4... Nd5 {[%clk 0:01:38.1]} 5. Bc4 {[%clk 0:02:59.1]}
5... e6 {[%clk 0:01:38.1]} 6. d4 {[%clk 0:02:58.6]} 6... cxd4 {[%clk 0:01:38.9]}
7. cxd4 {[%clk 0:02:59.5]} 7... d6 {[%clk 0:01:39.4]} 8. O-O {[%clk 0:02:59.5]}
8... Be7 {[%clk 0:01:40]} 9. Bd2 {[%clk 0:02:59.5]} 9... O-O {[%clk 0:01:37.1]}
10. Nc3 {[%clk 0:02:58.7]} 10... Nb6 {[%clk 0:01:37.5]} 11. Bb3 {[%clk
0:02:57.9]} 11... dxe5 {[%clk 0:01:28.7]} 12. dxe5 {[%clk 0:02:58.8]} 12... Qc7
{[%clk 0:01:29.2]} 13. Qe2 {[%clk 0:02:51.6]} 13... Rd8 {[%clk 0:01:11]} 14.
Rad1 {[%clk 0:02:46.5]} 14... Bd7 {[%clk 0:00:58.3]} 15. Nb5 {[%clk 0:02:31.3]}
15... Qb8 {[%clk 0:00:56.6]} 16. Bc2 {[%clk 0:02:23.2]} 16... a6 {[%clk
0:00:47.3]} 17. Nd6 {[%clk 0:02:22.6]} 17... g6 {[%clk 0:00:20.9]} 18. Bg5
{[%clk 0:02:06.8]} 18... Nd5 {[%clk 0:00:20.6]} 19. Bxe7 {[%clk 0:01:45]} 19...
Ncxe7 {[%clk 0:00:21.5]} 20. Ng5 {[%clk 0:01:45.5]} 20... Be8 {[%clk 0:00:20.6]}
21. Qf3 {[%clk 0:01:39]} 21... Rxd6 {[%clk 0:00:19.2]} 22. exd6 {[%clk
0:01:39.9]} 22... Qxd6 {[%clk 0:00:18.7]} 23. Rfe1 {[%clk 0:01:18.7]} 23... Rc8
{[%clk 0:00:19.2]} 24. Bb3 {[%clk 0:01:18.7]} 24... Qb4 {[%clk 0:00:09.7]} 25.
Re4 {[%clk 0:00:56.7]} 25... Qc5 {[%clk 0:00:07.4]} 26. Rc4 {[%clk 0:00:45.5]}
26... Qb5 {[%clk 0:00:07.7]} 27. Rxc8 {[%clk 0:00:41.4]} 27... Nxc8 {[%clk
0:00:08.6]} 28. Bxd5 {[%clk 0:00:37.6]} 28... exd5 {[%clk 0:00:09.5]} 29. Qxd5
{[%clk 0:00:30.7]} 29... Qc5 {[%clk 0:00:02.2]} 30. Qxc5 {[%clk 0:00:29.8]} 1-0

[Event "Early-Titled-Tuesday-Blitz-January-23-2024"]
[Site "Chess.com"]
[Date "2024.01.23"]
[Round "2"]
[White "NMJeevanK"]
[Black "lucliasco"]
[Result "0-1"]
[WhiteElo "2588"]
[BlackElo "2890"]
[TimeControl "180+1"]
[EndTime "8:16:59 PST"]
[Termination "lucliasco won on time"]

1. e4 {[%clk 0:03:00.9]} 1... c6 {[%clk 0:02:46]} 2. Nf3 {[%clk 0:02:49.4]} 2...
d5 {[%clk 0:02:45.8]} 3. exd5 {[%clk 0:02:48.2]} 3... cxd5 {[%clk 0:02:46.7]} 4.
d4 {[%clk 0:02:46.9]} 4... Nc6 {[%clk 0:02:47.5]} 5. Bd3 {[%clk 0:02:46.7]} 5...
g6 {[%clk 0:02:47.3]} 6. c3 {[%clk 0:02:47.2]} 6... Bg7 {[%clk 0:02:46.7]} 7.
O-O {[%clk 0:02:47.9]} 7... Bf5 {[%clk 0:02:44.8]} 8. Re1 {[%clk 0:02:47.3]}
8... Bxd3 {[%clk 0:02:41.8]} 9. Qxd3 {[%clk 0:02:48.2]} 9... Nf6 {[%clk
0:02:42.6]} 10. Bf4 {[%clk 0:02:43.5]} 10... O-O {[%clk 0:02:43.5]} 11. Nbd2
{[%clk 0:02:43.4]} 11... Nh5 {[%clk 0:02:39.8]} 12. Be3 {[%clk 0:02:40.8]} 12...
Qc7 {[%clk 0:02:39.5]} 13. Nb3 {[%clk 0:02:39.8]} 13... b6 {[%clk 0:02:34.2]}
14. Rac1 {[%clk 0:02:38.8]} 14... a5 {[%clk 0:02:33]} 15. c4 {[%clk 0:02:34.4]}
15... Nb4 {[%clk 0:02:30.9]} 16. Qb1 {[%clk 0:02:21.3]} 16... dxc4 {[%clk
0:02:27.7]} 17. Nbd2 {[%clk 0:02:21.7]} 17... b5 {[%clk 0:02:26.1]} 18. b3
{[%clk 0:02:16.8]} 18... c3 {[%clk 0:02:22.8]} 19. Ne4 {[%clk 0:02:16.7]} 19...
c2 {[%clk 0:02:23.5]} 20. Qa1 {[%clk 0:02:03.7]} 20... Nd3 {[%clk 0:02:22.8]}
21. Nc5 {[%clk 0:01:32.3]} 21... Nxe1 {[%clk 0:01:52.6]} 22. Nxe1 {[%clk
0:01:33.2]} 22... e5 {[%clk 0:01:38.6]} 23. Nxc2 {[%clk 0:01:24.9]} 23... exd4
{[%clk 0:01:37.7]} 24. Nxd4 {[%clk 0:01:06.7]} 24... Rad8 {[%clk 0:01:32.2]} 25.
Nxb5 {[%clk 0:00:40.8]} 25... Qb8 {[%clk 0:01:24.4]} 26. Nc3 {[%clk 0:00:39.2]}
26... Rfe8 {[%clk 0:01:20.4]} 27. Qb1 {[%clk 0:00:34.3]} 27... Nf4 {[%clk
0:01:15.2]} 28. Bxf4 {[%clk 0:00:23.5]} 28... Qxf4 {[%clk 0:01:14.2]} 29. N3a4
{[%clk 0:00:22.4]} 29... Rd2 {[%clk 0:01:08.5]} 30. Rf1 {[%clk 0:00:22]} 30...
Rxf2 {[%clk 0:00:56.7]} 31. Rxf2 {[%clk 0:00:21]} 31... Bd4 {[%clk 0:00:57.4]}
32. Nd3 {[%clk 0:00:19]} 32... Bxf2+ {[%clk 0:00:57.6]} 33. Nxf2 {[%clk
0:00:18.9]} 33... Qd2 {[%clk 0:00:54.1]} 34. Nd3 {[%clk 0:00:14]} 34... Qe3+
{[%clk 0:00:52.2]} 35. Kh1 {[%clk 0:00:06.6]} 35... Qxd3 {[%clk 0:00:50.6]} 36.
Qg1 {[%clk 0:00:04]} 36... Qd2 {[%clk 0:00:49.1]} 0-1

[Event "Early-Titled-Tuesday-Blitz-January-23-2024"]
[Site "Chess.com"]
[Date "2024.01.23"]
[Round "2"]
[White "Iskusnyh"]
[Black "FairChess_on_YouTube"]
[Result "0-1"]
[WhiteElo "2646"]
[BlackElo "3111"]
[TimeControl "180+1"]
[EndTime "8:17:00 PST"]
[Termination "FairChess_on_YouTube won on time"]

1. d4 {[%clk 0:03:00.9]} 1... Nf6 {[%clk 0:02:57.3]} 2. c4 {[%clk 0:02:59.9]}
2... e6 {[%clk 0:02:56.3]} 3. g3 {[%clk 0:02:59.6]} 3... d5 {[%clk 0:02:52.3]}
4. Bg2 {[%clk 0:02:58.9]} 4... Be7 {[%clk 0:02:49.5]} 5. Nf3 {[%clk 0:02:59.1]}
5... O-O {[%clk 0:02:50.1]} 6. O-O {[%clk 0:02:58.9]} 6... c6 {[%clk 0:02:50.8]}
7. Qc2 {[%clk 0:02:57.2]} 7... Nbd7 {[%clk 0:02:50.3]} 8. Rd1 {[%clk 0:02:55.7]}
8... b6 {[%clk 0:02:46.8]} 9. b3 {[%clk 0:02:55.5]} 9... Ba6 {[%clk 0:02:46.5]}
10. Nbd2 {[%clk 0:02:55.1]} 10... Rc8 {[%clk 0:02:46.4]} 11. e4 {[%clk
0:02:54.6]} 11... c5 {[%clk 0:02:46.2]} 12. exd5 {[%clk 0:02:51.1]} 12... exd5
{[%clk 0:02:44.7]} 13. Bb2 {[%clk 0:02:32.8]} 13... Re8 {[%clk 0:02:44]} 14. Qf5
{[%clk 0:02:00.3]} 14... g6 {[%clk 0:02:18.4]} 15. Qh3 {[%clk 0:01:59.2]} 15...
cxd4 {[%clk 0:02:14.8]} 16. Nxd4 {[%clk 0:01:55.5]} 16... Bc5 {[%clk 0:02:01]}
17. cxd5 {[%clk 0:01:32.5]} 17... Ne5 {[%clk 0:02:00.9]} 18. N2f3 {[%clk
0:01:16.2]} 18... Nd3 {[%clk 0:01:58]} 19. Rxd3 {[%clk 0:00:56]} 19... Bxd3
{[%clk 0:01:58.9]} 20. Ng5 {[%clk 0:00:49.3]} 20... h5 {[%clk 0:01:30.6]} 21.
Qh4 {[%clk 0:00:36.8]} 21... Nxd5 {[%clk 0:01:07.3]} 22. Rd1 {[%clk 0:00:26.4]}
22... Be7 {[%clk 0:00:27.9]} 23. f4 {[%clk 0:00:04]} 23... Nb4 {[%clk 0:00:27]}
24. a3 {[%clk 0:00:02.8]} 24... Bf6 {[%clk 0:00:27.4]} 25. axb4 {[%clk
0:00:01.4]} 25... Bxd4+ {[%clk 0:00:27.7]} 0-1

[Event "Early-Titled-Tuesday-Blitz-January-23-2024"]
[Site "Chess.com"]
[Date "2024.01.23"]
[Round "2"]
[White "Artyom_ChessMate"]
[Black "GianmarcoVaR"]
[Result "1-0"]
[WhiteElo "2529"]
[BlackElo "2750"]
[TimeControl "180+1"]
[EndTime "8:17:00 PST"]
[Termination "Artyom_ChessMate won on time"]

1. e4 {[%clk 0:03:00.9]} 1... c6 {[%clk 0:02:59.2]} 2. d4 {[%clk 0:03:00.2]}
2... d5 {[%clk 0:02:59.4]} 3. exd5 {[%clk 0:03:01.1]} 3... cxd5 {[%clk
0:02:59.8]} 4. Bd3 {[%clk 0:03:01.7]} 4... Nc6 {[%clk 0:02:58.8]} 5. c3 {[%clk
0:03:02.4]} 5... Nf6 {[%clk 0:02:55]} 6. Bf4 {[%clk 0:03:02]} 6... Bg4 {[%clk
0:02:53.9]} 7. Qb3 {[%clk 0:03:01.5]} 7... Qd7 {[%clk 0:02:54.5]} 8. Nd2 {[%clk
0:03:01.5]} 8... e6 {[%clk 0:02:54.7]} 9. Ngf3 {[%clk 0:03:02.1]} 9... Bd6
{[%clk 0:02:54.8]} 10. Bxd6 {[%clk 0:03:02.4]} 10... Qxd6 {[%clk 0:02:55.7]} 11.
O-O {[%clk 0:03:02.4]} 11... O-O {[%clk 0:02:55.6]} 12. Rae1 {[%clk 0:03:03]}
12... Bxf3 {[%clk 0:02:25.5]} 13. Nxf3 {[%clk 0:03:03.9]} 13... Rab8 {[%clk
0:02:26.1]} 14. Ne5 {[%clk 0:03:02.5]} 14... b5 {[%clk 0:02:20.8]} 15. Bxb5
{[%clk 0:02:40.9]} 15... Nxd4 {[%clk 0:02:20.9]} 16. cxd4 {[%clk 0:02:33.6]}
16... a6 {[%clk 0:02:19.6]} 17. a4 {[%clk 0:02:34]} 17... axb5 {[%clk
0:02:19.7]} 18. a5 {[%clk 0:02:34.6]} 18... Nd7 {[%clk 0:01:45.4]} 19. f4 {[%clk
0:02:21]} 19... Rfc8 {[%clk 0:01:37.8]} 20. Ra1 {[%clk 0:02:16.4]} 20... Nxe5
{[%clk 0:01:26.9]} 21. fxe5 {[%clk 0:02:14.8]} 21... Qe7 {[%clk 0:01:26.6]} 22.
Rf4 {[%clk 0:01:44.1]} 22... Qa7 {[%clk 0:01:09.3]} 23. Qd3 {[%clk 0:01:29.6]}
23... b4 {[%clk 0:01:06.4]} 24. h4 {[%clk 0:01:23]} 24... b3 {[%clk 0:00:41.6]}
25. Raf1 {[%clk 0:01:09.6]} 25... Rc7 {[%clk 0:00:33.4]} 26. Qf3 {[%clk
0:00:42.4]} 26... Rb4 {[%clk 0:00:28.1]} 27. Qg4 {[%clk 0:00:38.9]} 27... Qxa5
{[%clk 0:00:17.5]} 28. Qxe6 {[%clk 0:00:33.9]} 28... Rb8 {[%clk 0:00:02.6]} 29.
Rxf7 {[%clk 0:00:30.2]} 1-0

[Event "Early-Titled-Tuesday-Blitz-January-23-2024"]
[Site "Chess.com"]
[Date "2024.01.23"]
[Round "2"]
[White "Lennis93"]
[Black "eightbyeightchess"]
[Result "0-1"]
[WhiteElo "2680"]
[BlackElo "2376"]
[TimeControl "180+1"]
[EndTime "8:17:01 PST"]
[Termination "eightbyeightchess won by checkmate"]

1. d4 {[%clk 0:02:51.1]} 1... d5 {[%clk 0:02:56.4]} 2. c4 {[%clk 0:02:51]} 2...
c6 {[%clk 0:02:56.3]} 3. Nf3 {[%clk 0:02:50.5]} 3... Nf6 {[%clk 0:02:56.1]} 4.
g3 {[%clk 0:02:49.8]} 4... dxc4 {[%clk 0:02:52.9]} 5. Bg2 {[%clk 0:02:49.4]}
5... Bf5 {[%clk 0:02:51.8]} 6. O-O {[%clk 0:02:49.5]} 6... e6 {[%clk 0:02:51.8]}
7. Ne5 {[%clk 0:02:48.3]} 7... Nbd7 {[%clk 0:02:51]} 8. Nxc4 {[%clk 0:02:48]}
8... Be7 {[%clk 0:02:20]} 9. Nc3 {[%clk 0:02:47.3]} 9... Bb4 {[%clk 0:02:10]}
10. Qb3 {[%clk 0:02:46.3]} 10... Bxc3 {[%clk 0:02:08.1]} 11. bxc3 {[%clk
0:02:47.2]} 11... O-O {[%clk 0:02:05.2]} 12. Qxb7 {[%clk 0:02:46.7]} 12... Rc8
{[%clk 0:02:04.1]} 13. Nd6 {[%clk 0:02:43.9]} 13... Rc7 {[%clk 0:02:03.1]} 14.
Qa6 {[%clk 0:02:43.2]} 14... Bg6 {[%clk 0:01:57.3]} 15. Rb1 {[%clk 0:02:35]}
15... Bxb1 {[%clk 0:01:55.8]} 16. Ba3 {[%clk 0:02:33.9]} 16... Bg6 {[%clk
0:01:55.6]} 17. e4 {[%clk 0:02:31.4]} 17... e5 {[%clk 0:01:53.8]} 18. f4 {[%clk
0:02:30.8]} 18... exd4 {[%clk 0:01:52.1]} 19. cxd4 {[%clk 0:02:28.5]} 19... c5
{[%clk 0:01:46.4]} 20. e5 {[%clk 0:02:18]} 20... Ng4 {[%clk 0:01:43.6]} 21. Qe2
{[%clk 0:02:14]} 21... Nh6 {[%clk 0:01:38.6]} 22. f5 {[%clk 0:02:12.9]} 22...
cxd4 {[%clk 0:01:38.4]} 23. fxg6 {[%clk 0:02:12.4]} 23... hxg6 {[%clk
0:01:38.5]} 24. e6 {[%clk 0:02:11.8]} 24... fxe6 {[%clk 0:01:36.3]} 25. Qxe6+
{[%clk 0:02:11.8]} 25... Kh7 {[%clk 0:01:36.7]} 26. Rd1 {[%clk 0:01:35.8]} 26...
Qf6 {[%clk 0:01:28]} 27. Qxf6 {[%clk 0:01:30.5]} 27... Rxf6 {[%clk 0:01:26.4]}
28. Ne8 {[%clk 0:01:29.9]} 28... Rc2 {[%clk 0:01:22.3]} 29. Nxf6+ {[%clk
0:01:29.4]} 29... Nxf6 {[%clk 0:01:22.6]} 30. Rxd4 {[%clk 0:01:22]} 30... Rxa2
{[%clk 0:01:22.6]} 31. Ra4 {[%clk 0:00:55]} 31... Nhg4 {[%clk 0:01:10.1]} 32. h3
{[%clk 0:00:51.5]} 32... Ra1+ {[%clk 0:01:09.4]} 33. Bf1 {[%clk 0:00:44.3]}
33... Ne3 {[%clk 0:01:10.2]} 34. Kf2 {[%clk 0:00:42.5]} 34... Nxf1 {[%clk
0:01:08.1]} 35. Rxa7 {[%clk 0:00:43.1]} 35... Nd2 {[%clk 0:00:58.6]} 36. g4
{[%clk 0:00:38.1]} 36... Nc4 {[%clk 0:00:55.4]} 37. Bc5 {[%clk 0:00:36.1]} 37...
Rxa7 {[%clk 0:00:54.8]} 38. Bxa7 {[%clk 0:00:37]} 38... Kg8 {[%clk 0:00:53.3]}
39. Kf3 {[%clk 0:00:32.2]} 39... Kf7 {[%clk 0:00:52.7]} 40. Kf4 {[%clk
0:00:32.5]} 40... Nd5+ {[%clk 0:00:48.2]} 41. Kg5 {[%clk 0:00:30.4]} 41... Nd6
{[%clk 0:00:44.2]} 42. Bb8 {[%clk 0:00:27.8]} 42... Ne4+ {[%clk 0:00:43.9]} 43.
Kh4 {[%clk 0:00:27.4]} 43... g5+ {[%clk 0:00:42.5]} 44. Kh5 {[%clk 0:00:27.6]}
44... Ndf6# {[%clk 0:00:41.7]} 0-1

[Event "Early-Titled-Tuesday-Blitz-January-23-2024"]
[Site "Chess.com"]
[Date "2024.01.23"]
[Round "2"]
[White "alekroth65"]
[Black "lefonghua"]
[Result "0-1"]
[WhiteElo "2360"]
[BlackElo "2629"]
[TimeControl "180+1"]
[EndTime "8:17:01 PST"]
[Termination "lefonghua won by resignation"]

1. d4 {[%clk 0:03:00.9]} 1... Nf6 {[%clk 0:02:59.2]} 2. c4 {[%clk 0:03:00.3]}
2... c5 {[%clk 0:02:59.7]} 3. d5 {[%clk 0:02:58.8]} 3... e6 {[%clk 0:03:00.3]}
4. Nc3 {[%clk 0:02:56.9]} 4... exd5 {[%clk 0:03:00.6]} 5. cxd5 {[%clk
0:02:56.4]} 5... d6 {[%clk 0:03:01]} 6. e4 {[%clk 0:02:54.2]} 6... g6 {[%clk
0:03:01.3]} 7. f3 {[%clk 0:02:53.4]} 7... Bg7 {[%clk 0:03:01.4]} 8. Bg5 {[%clk
0:02:52.6]} 8... h6 {[%clk 0:03:00.8]} 9. Be3 {[%clk 0:02:51.4]} 9... O-O {[%clk
0:03:00.7]} 10. Qd2 {[%clk 0:02:51.2]} 10... Kh7 {[%clk 0:02:55.6]} 11. Nge2
{[%clk 0:02:50.7]} 11... Nbd7 {[%clk 0:02:54.7]} 12. Ng3 {[%clk 0:02:49.3]}
12... a6 {[%clk 0:02:52.3]} 13. a4 {[%clk 0:02:47.4]} 13... Ne5 {[%clk
0:02:50.4]} 14. Be2 {[%clk 0:02:47]} 14... Bd7 {[%clk 0:02:49]} 15. a5 {[%clk
0:02:37.4]} 15... b5 {[%clk 0:02:45.2]} 16. axb6 {[%clk 0:02:35.8]} 16... Qxb6
{[%clk 0:02:45.6]} 17. O-O {[%clk 0:02:34.2]} 17... Rfb8 {[%clk 0:02:41.4]} 18.
Ra2 {[%clk 0:02:31]} 18... Bb5 {[%clk 0:02:37.7]} 19. Nxb5 {[%clk 0:01:48.2]}
19... axb5 {[%clk 0:02:37.3]} 20. b4 {[%clk 0:01:47.6]} 20... Nfd7 {[%clk
0:02:31.4]} 21. Rfa1 {[%clk 0:01:41.5]} 21... Nxf3+ {[%clk 0:02:03]} 22. gxf3
{[%clk 0:01:42.4]} 22... Bxa1 {[%clk 0:02:03.2]} 23. Rxa8 {[%clk 0:01:40.8]}
23... Rxa8 {[%clk 0:02:04.1]} 24. Bxh6 {[%clk 0:01:38.9]} 24... cxb4+ {[%clk
0:01:54.6]} 25. Be3 {[%clk 0:01:38.3]} 25... Qc7 {[%clk 0:01:50.7]} 26. Qxb4
{[%clk 0:01:26.6]} 26... Qc3 {[%clk 0:01:45]} 27. Qxc3 {[%clk 0:01:23.5]} 27...
Bxc3 {[%clk 0:01:45.9]} 28. Bxb5 {[%clk 0:01:22.7]} 28... Ne5 {[%clk 0:01:46.4]}
29. Kf2 {[%clk 0:01:09.4]} 29... Ra2+ {[%clk 0:01:41.3]} 30. Ne2 {[%clk
0:01:09]} 30... f6 {[%clk 0:01:29.8]} 31. h3 {[%clk 0:01:06.1]} 31... g5 {[%clk
0:01:27.8]} 32. f4 {[%clk 0:00:56.6]} 32... gxf4 {[%clk 0:01:23.9]} 33. Bxf4
{[%clk 0:00:56.1]} 33... Bd4+ {[%clk 0:01:23.4]} 34. Kg2 {[%clk 0:00:52.3]}
34... Bc5 {[%clk 0:01:21.6]} 35. h4 {[%clk 0:00:49.1]} 35... Rb2 {[%clk
0:01:18.5]} 36. Ba6 {[%clk 0:00:47.2]} 36... Kg6 {[%clk 0:01:04.4]} 37. Bxe5
{[%clk 0:00:36]} 37... fxe5 {[%clk 0:01:01.8]} 38. Kf3 {[%clk 0:00:34.7]} 38...
Rb3+ {[%clk 0:01:00.1]} 39. Kg4 {[%clk 0:00:28.3]} 39... Bf2 {[%clk 0:01:00.2]}
40. h5+ {[%clk 0:00:25.1]} 40... Kf6 {[%clk 0:00:59.1]} 41. Bc8 {[%clk
0:00:20.3]} 41... Re3 {[%clk 0:00:58.3]} 42. Nc1 {[%clk 0:00:10.3]} 42... Rxe4+
{[%clk 0:00:56.5]} 43. Kf3 {[%clk 0:00:10.4]} 43... Rf4+ {[%clk 0:00:57.1]} 44.
Ke2 {[%clk 0:00:09.4]} 44... Bd4 {[%clk 0:00:54.4]} 0-1